Cogmind - Beta 12 @@@ ROGUE MODE // 2024.02.24 @ 22:26:19 Player: monistgf Result: Self-destructed Performance ------------- Evolutions (6) 3000 Regions Visited (11) 2200 Robots Destroyed (129) 645 Value Destroyed (5381) 5381 Prototype IDs (9) 180 Alien Tech Used (0) 0 Bonus (138) 138 TOTAL SCORE: 11544 Bonus ------- Pacifist 200 High Alert Combat Kills 19 Follower Combat Kills 191 Friendly Fire -272 Cogmind --------- Core Integrity 76/1150 Matter 257/300 Energy 170/170 System Corruption 37% Temperature Cool (0) Movement Walking (190) Ox1 Location -4/Factory Parts ------- > --- POWER (1) -------- Light Antimatter Reactor > --- PROPULSION (2) --- Myomer Leg Myomer Leg > --- UTILITY (12) ----- Large Storage Unit Improved Signal Interpreter Improved Phase Shifter > --- WEAPON (4) ------- Tesla Rifle Coil Gun Coil Gun Coil Gun > --- INVENTORY (15) --- Micro Fission Core Flexi-carbon Leg Flexi-carbon Leg Enhanced Flexi-carbon Leg Myomer Leg Myomer Leg Myomer Leg Compact Wheel Large Storage Unit Compact Matter Pod (150) Peak State ------------ > --- POWER ------------ Light Antimatter Reactor > --- PROPULSION ------- Armored Wheel Centrium Wheel > --- UTILITY ---------- Advanced Heat Sink Large Storage Unit Machine Analyzer Enhanced Optical Array Improved Signal Interpreter Improved Targeting Computer Improved Phase Shifter Improved Heavy Armor Plating Improved Hacking Suite Improved Hacking Suite Improved System Shield > --- WEAPON ----------- Advanced Variable Charge Gun KE Penetrator Advanced KE Penetrator Advanced KE Penetrator > --- INVENTORY -------- Particle Reactor Centrium Heavy Treads Enhanced Flexi-carbon Leg Myomer Leg Myomer Leg Compact Wheel Compact Wheel Advanced Heat Sink Large Storage Unit Compact Matter Pod Plasma Rifle Coil Gun Mass Driver Lance [Rating: 105] Favorites ----------- Power Angular Momentum Engine Engine Angular Momentum Engine Power Core Fission Core Reactor Light Antimatter Reactor Propulsion Armored Wheel Leg Myomer Leg Wheel Armored Wheel Utility Hacking Suite Device Advanced Heat Sink Storage Large Storage Unit Processor Improved Signal Interpreter Hackware Hacking Suite Protection Improved Light Armor Plating Weapon Improved Assault Rifle Energy Gun Advanced Variable Charge Gun Ballistic Gun Improved Assault Rifle Ballistic Cannon Enhanced Gauss Cannon Launcher Rocket Launcher Impact Weapon Flail Slashing Weapon Axe Piercing Weapon Lance Build | -11 -10 -9 -8 -7 -6 -5 -5 -5 -5 -5 -4 ------- Run | Jun Mat Mat Mat Fac Fac Fac Ext Cet Arc Hub Fac Slots Evolved 12 | . . 2 2 2 2 2 . . . . 2 Power . | . . . . . . . . . . . . Propulsion . | . . . . . . . . . . . . Utility 10 | . . . 2 2 2 2 . . . . 2 Weapon 2 | . . 2 . . . . . . . . . Parts Attached 174 | . 1 22 3 8 10 9 24 13 8 . 76 Power 14 | . . 1 . 2 1 1 2 1 . . 6 Engine 5 | . . 1 . 1 1 1 . . . . 1 Core 3 | . . . . 1 . . 2 . . . . Reactor 6 | . . . . . . . . 1 . . 5 Propulsion 25 | . . 2 . 2 . . 1 1 1 . 18 Treads . | . . . . . . . . . . . . Leg 9 | . . . . . . . . . . . 9 Wheel 16 | . . 2 . 2 . . 1 1 1 . 9 Hover . | . . . . . . . . . . . . Flight . | . . . . . . . . . . . . Utility 55 | . 1 2 3 3 3 5 8 4 5 . 21 Device 20 | . . . . . 1 1 2 1 4 . 11 Storage 2 | . 1 1 . . . . . . . . . Processor 4 | . . . . . . 1 . . . . 3 Hackware 10 | . . . 2 2 1 1 . . . . 4 Protection 19 | . . 1 1 1 1 2 6 3 1 . 3 Artifact . | . . . . . . . . . . . . Weapon 80 | . . 17 . 1 6 3 13 7 2 . 31 Energy Gun 10 | . . . . . . . . 1 . . 9 Energy Cannon . | . . . . . . . . . . . . Ballistic Gun 49 | . . 13 . 1 . 1 8 5 2 . 19 Ballistic Cannon 11 | . . 3 . . 3 1 2 1 . . 1 Launcher 3 | . . 1 . . 1 . 1 . . . . Special Weapon . | . . . . . . . . . . . . Impact Weapon 2 | . . . . . 2 . . . . . . Slashing Weapon 2 | . . . . . . 1 1 . . . . Piercing Weapon 3 | . . . . . . . 1 . . . 2 Special Melee Weapon . | . . . . . . . . . . . . Unidentified Prototypes 5 | . . 1 . . 1 . . 2 . . 1 Parts Lost 62 | . . . . . 1 . 5 7 5 5 39 Power 4 | . . . . . . . . . . . 4 Propulsion 10 | . . . . . . . 1 1 1 1 6 Utility 29 | . . . . . 1 . 3 3 3 2 17 Weapon 19 | . . . . . . . 1 3 1 2 12 Highest Loss Streak 20 | . . . . . 1 . 2 7 3 4 20 To Critical Strikes 2 | . . . . . . . . . . 1 1 Average Slot Usage (%) 93 | . 85 98 93 98 92 98 97 97 94 88 80 Engine 3 | . 14 11 9 5 6 5 2 . . . . Reactor 1 | . . . . . . . . 2 5 5 4 Leg 1 | . 28 . . . . . . . . . 2 Wheel 11 | . . 22 18 15 13 11 10 11 11 11 6 Device 7 | . . . . . 1 9 7 9 16 17 13 Storage 6 | . 14 11 9 7 6 5 5 5 5 5 5 Processor 4 | . . . . . . 2 5 5 5 5 10 Hackware 18 | . . . 12 28 30 29 26 23 13 11 13 Protection 7 | . . 9 9 7 6 8 9 10 9 6 3 Energy Gun 1 | . . . . . . . . 2 5 5 4 Ballistic Gun 18 | . 28 33 27 23 20 17 17 17 17 15 11 Ballistic Cannon 3 | . . 10 9 7 4 2 4 1 . . 1 Naked Turns . | . . . . . . . . . . . . Heaviest Build 83 | 14 19 48 48 47 51 66 74 75 83 83 81 Greatest Support 53 | 20 20 26 26 28 24 24 24 24 24 24 53 Greatest Overweight (x) 18 | . . 1 1 1 2 2 5 3 3 4 18 Average Overweight (x) 1 | . . . 1 1 1 2 2 2 2 2 1 Largest Inventory Capacity 15 | . 10 15 15 15 15 15 15 15 15 15 15 Average Capacity 14 | . 9 14 15 15 15 15 15 15 15 15 15 Most Carried 15 | . 10 15 15 15 15 15 15 15 15 15 15 Average Carried 13 | . 7 13 14 14 14 14 14 13 14 15 12 Final Capacity 15 | 8 10 15 15 15 15 15 15 15 15 15 15 Final Carried 15 | 6 10 15 15 15 15 15 15 15 15 15 10 Class Distribution -------------------- 38% | Hacker-Tank 22% | Scavenger-Tank 11% | Tank 10% | Scavenger-Skirmisher 6% | Scavenger-Gunner Dominant Class ---------------- Mutant | -10/Materials Tank | -9/Materials Hacker-Tank | -8/Materials Hacker-Tank | -7/Factory Hacker-Tank | -6/Factory Hacker-Tank | -5/Factory Scavenger-Tank | -5/Extension Scavenger-Skirmisher | -5/Cetus Scavenger-Skirmisher | -5/Archives Scavenger-Skirmisher | -5/Hub_04(d) Scavenger-Tank | -4/Factory Resources | -11 -10 -9 -8 -7 -6 -5 -5 -5 -5 -5 -4 ----------- Run | Jun Mat Mat Mat Fac Fac Fac Ext Cet Arc Hub Fac Matter Collected 5565 | 169 . 449 273 68 352 382 1217 421 592 15 1627 Remotely . | . . . . . . . . . . . . Salvage Created 5574 | . . 597 244 63 100 392 1005 445 694 112 1922 Parts 304 | . . 44 16 6 7 16 49 25 31 6 104 Haulers Intercepted 3 | . . 2 1 . . . . . . . . Recyclers Shooed 8 | . . . . . . . 2 . . . 6 Parts Field Recycled . | . . . . . . . . . . . . Retrieved Matter . | . . . . . . . . . . . . Parts Self-Destructed . | . . . . . . . . . . . . Prevented . | . . . . . . . . . . . . Kills | -11 -10 -9 -8 -7 -6 -5 -5 -5 -5 -5 -4 ------- Run | Jun Mat Mat Mat Fac Fac Fac Ext Cet Arc Hub Fac Combat Hostiles Destroyed 92 | . . 16 4 1 4 4 21 13 4 1 24 Melee 1 | . . . . . . . . . . . 1 Guns 64 | . . 8 3 . . 4 11 13 4 1 20 Cannons 17 | . . 5 1 1 . . 8 . . . 2 AOE 10 | . . 3 . . 4 . 2 . . . 1 Classes Destroyed 13 | . . 5 1 . 1 2 2 . . 1 1 Worker 6 | . . . . . . 1 . . . . 5 Builder 6 | . . 2 . . . . . . . . 4 Tunneler 1 | . . . . . . . . . . . 1 Hauler 3 | . . 2 1 . . . . . . . . Recycler 4 | . . . . . . 1 . . . . 3 Operator 13 | . . . 1 . 1 . 2 . 9 . . Watcher 5 | . . . . . 1 1 2 1 . . . Swarmer 27 | . . 6 . . 4 . 5 10 . . 2 Grunt 24 | . . 3 2 . . 3 9 . . . 7 Sentry 22 | . . 7 2 1 . 1 5 . 4 . 2 Hunter 7 | . . . . . . . 1 . . . 6 Programmer 8 | . . . . . . . 1 . . . 7 Cetus Guard 3 | . . . . . . . . 3 . . . Assembled 1 | . . . . . . . . . . 1 . Best Kill Streak 13 | . . 8 2 1 4 3 5 13 4 1 12 Combat Bots Only 13 | . . 7 2 1 4 3 5 13 1 1 9 Max Kills in Single Turn 4 | . . 3 2 1 4 1 2 2 1 1 2 Gunslinging 1 | . . . . . . . . 1 . 1 . Exploded 4 | . . 3 . . 4 . 2 . . . 1 Melee 1 | . . . . . . . . . . . 1 Uniques/NPCs Destroyed . | . . . . . . . . . . . . Combat | -11 -10 -9 -8 -7 -6 -5 -5 -5 -5 -5 -4 -------- Run | Jun Mat Mat Mat Fac Fac Fac Ext Cet Arc Hub Fac Damage Taken 11463 | . . 668 150 49 150 228 1195 1203 717 1096 6007 Core 1859 | . . 99 46 6 18 . 178 94 75 269 1074 Absorbed by Shields . | . . . . . . . . . . . . Redirected to Shielding 208 | . . . . . . . . 9 71 26 102 Regen/Repaired (Parts) 427 | . . . . . 108 . . . . . 319 Core Remaining (%) 85 | 100 100 75 91 99 97 . . . . 38 . Volleys Fired 280 | . . 34 12 2 4 16 57 21 42 2 90 Largest 4 | . . 4 4 4 3 4 4 4 4 4 4 Hottest 205 | . . 108 108 108 74 141 155 178 185 185 205 Shots Fired 919 | . . 115 48 8 10 59 186 77 156 8 252 Gun 763 | . . 89 36 6 9 48 129 69 156 8 213 Cannon 150 | . . 25 12 2 . 11 53 8 . . 39 Launcher 6 | . . 1 . . 1 . 4 . . . . Special . | . . . . . . . . . . . . Kinetic 830 | . . 114 48 8 9 59 182 75 126 6 203 Thermal 77 | . . . . . . . . 2 30 2 43 Explosive 6 | . . 1 . . 1 . 4 . . . . Electromagnetic 6 | . . . . . . . . . . . 6 Robot Hit Streak 14 | . . 10 13 5 7 9 14 8 9 4 11 Robot Miss Streak 9 | . . 5 2 1 2 7 9 6 5 1 7 Penetration Max 1 | . . . . . . . . 1 1 1 1 Secondary Targets 15 | . . 3 . . . . . 5 . 2 5 Max Gunslinging Chain 1 | . . 1 . . . . . 1 . 1 1 Shots Hit Robots 550 | . . 71 31 7 7 39 98 44 93 6 154 Core Hits 287 | . . 30 12 3 7 28 66 24 33 4 80 Critical Kills 16 | . . . . . . . 3 1 3 . 9 Critical Parts Destroyed 23 | . . 1 . . . . 5 . 8 . 9 Critical Strikes 62 | . . 1 . . . 2 14 6 15 . 24 Destroy 49 | . . 1 . . . . 9 3 15 . 21 Blast 12 | . . . . . . 2 5 3 . . 2 Impale 1 | . . . . . . . . . . . 1 Melee Attacks 22 | . . . . . 6 3 2 . . . 11 Impact 9 | . . . . . 6 3 . . . . . Slashing 1 | . . . . . . . 1 . . . . Piercing 12 | . . . . . . . 1 . . . 11 Sneak Attacks 1 | . . . . . . . . . . . 1 Combat Hostiles . | . . . . . . . . . . . . Follow-up Attacks . | . . . . . . . . . . . . Damage Inflicted 14823 | . . 1319 584 126 295 762 2687 1290 2609 219 4932 Guns 11566 | . . 838 419 79 88 626 1633 1077 2609 219 3978 Cannons 2167 | . . 329 165 47 . 136 644 213 . . 633 Explosions 932 | . . 152 . . 207 . 410 . . . 163 Melee 158 | . . . . . . . . . . . 158 Ramming . | . . . . . . . . . . . . Kinetic 12169 | . . 1167 584 126 88 762 2277 1253 2048 157 3707 Thermal 1569 | . . . . . . . 57 37 561 62 852 Explosive 875 | . . 152 . . 207 . 353 . . . 163 Electromagnetic 52 | . . . . . . . . . . . 52 Impact . | . . . . . . . . . . . . Slashing . | . . . . . . . . . . . . Piercing 158 | . . . . . . . . . . . 158 Highest Corruption 37 | . . . . . . . . . . . 37 Average Corruption 21 | . . . . . . . . . . . 21 Corruption Purged . | . . . . . . . . . . . . Corruption Blocked . | . . . . . . . . . . . . Effects 30 | . . . . . . . . . . . 30 Message Errors 5 | . . . . . . . . . . . 5 Matter Fused 4 | . . . . . . . . . . . 4 Heat Flow Errors 5 | . . . . . . . . . . . 5 Energy Discharges 1 | . . . . . . . . . . . 1 Data Loss (minor) 4 | . . . . . . . . . . . 4 Misfires 2 | . . . . . . . . . . . 2 Misdirections 3 | . . . . . . . . . . . 3 Weapon Failures 6 | . . . . . . . . . . . 6 Overload Shots . | . . . . . . . . . . . . Overflow Damage 61 | . . . . . . . 28 . . . 33 Projectiles 35 | . . . . . . . 21 . . . 14 Explosions 9 | . . . . . . . 7 . . . 2 Melee 17 | . . . . . . . . . . . 17 Knockbacks 15 | . . . 2 . . 1 5 . . . 7 Impact . | . . . . . . . . . . . . Kinetic 15 | . . . 2 . . 1 5 . . . 7 Secondary . | . . . . . . . . . . . . Self-Inflicted Damage 98 | . . . . . . . 60 . . . 38 Shots 3 | . . . . . . . 2 . . . 1 Rammed . | . . . . . . . . . . . . Targets Rammed . | . . . . . . . . . . . . Kicked . | . . . . . . . . . . . . Crushed . | . . . . . . . . . . . . Highest Temperature 316 | . . 316 282 96 . 309 258 303 109 . 310 Average Temperature 85 | . . 115 93 50 . 108 53 98 23 . 94 Received Heat Transfer 1063 | . . 207 72 12 18 102 288 90 99 . 175 Effects 4 | . . 3 . . . . . . . . 1 Interference 4 | . . 3 . . . . . . . . 1 Siege Activations . | . . . . . . . . . . . . Robots Corrupted . | . . . . . . . . . . . . Combat Hostiles . | . . . . . . . . . . . . Parts Fried . | . . . . . . . . . . . . Impact Corruptions . | . . . . . . . . . . . . Robots Melted . | . . . . . . . . . . . . Combat Hostiles . | . . . . . . . . . . . . Parts Melted 3 | . . . . . . . . . 1 . 2 Heat Transferred 1939 | . . . . . . . 50 37 703 74 1075 Parts Sabotaged . | . . . . . . . . . . . . Parts Stolen . | . . . . . . . . . . . . Parts Stripped . | . . . . . . . . . . . . Power Chain Reactions . | . . . . . . . . . . . . Missiles Intercepted . | . . . . . . . . . . . . Alert | -11 -10 -9 -8 -7 -6 -5 -5 -5 -5 -5 -4 ------- Run | Jun Mat Mat Mat Fac Fac Fac Ext Cet Arc Hub Fac Peak Influence 426 | . . 413 351 218 233 180 375 239 304 70 426 Initial 174 | . . . 174 159 106 28 88 64 95 36 29 Average 147 | . . 223 240 193 173 42 95 168 234 49 179 Maximum Alert Level 2 | . . 2 1 1 1 . 1 1 1 . 2 Low Security (%) 67 | . 100 47 49 37 41 100 92 36 30 100 60 Level 1 31 | . . 45 50 62 58 . 7 63 69 . 37 Level 2 1 | . . 6 . . . . . . . . 2 Level 3 . | . . . . . . . . . . . . Level 4 . | . . . . . . . . . . . . Level 5 . | . . . . . . . . . . . . High Security . | . . . . . . . . . . . . Max Security . | . . . . . . . . . . . . Squads Dispatched 9 | . . 1 . . . . 1 . . 1 6 Investigation . | . . . . . . . . . . . . Extermination 3 | . . . . . . . . . . . 3 Reinforcement 5 | . . 1 . . . . 1 . . 1 2 Assault . | . . . . . . . . . . . . Garrison 1 | . . . . . . . . . . . 1 Intercept . | . . . . . . . . . . . . Searches Triggered . | . . . . . . . . . . . . Construction Impeded 1 | . . . . . . . 1 . . . . Haulers Reinforced . | . . . . . . . . . . . . Active Scanning Responses . | . . . . . . . . . . . . Cargo Convoy Interrupts 1 | . . . . . . . . . . . 1 Stealth | -11 -10 -9 -8 -7 -6 -5 -5 -5 -5 -5 -4 --------- Run | Jun Mat Mat Mat Fac Fac Fac Ext Cet Arc Hub Fac Distress Signals 15 | . . 1 1 . . 2 3 1 1 2 4 Communications Jammed . | . . . . . . . . . . . . Distress Signals . | . . . . . . . . . . . . Times Spotted 187 | . 1 22 8 1 8 9 29 16 21 13 59 Peak Tracking Total 17 | . 1 7 4 1 4 5 5 6 2 7 17 Tactical Retreats 4 | . . 1 . . . . 1 . . . 2 Traps | -11 -10 -9 -8 -7 -6 -5 -5 -5 -5 -5 -4 ------- Run | Jun Mat Mat Mat Fac Fac Fac Ext Cet Arc Hub Fac Traps Triggered 8 | . . . . . . . 2 . . 1 5 Indirectly . | . . . . . . . . . . . . Trap Hack Attempts . | . . . . . . . . . . . . Triggered . | . . . . . . . . . . . . Disarmed . | . . . . . . . . . . . . Reprogrammed . | . . . . . . . . . . . . Reused . | . . . . . . . . . . . . Traps Extracted . | . . . . . . . . . . . . Installed . | . . . . . . . . . . . . Triggered . | . . . . . . . . . . . . Machines | -11 -10 -9 -8 -7 -6 -5 -5 -5 -5 -5 -4 ---------- Run | Jun Mat Mat Mat Fac Fac Fac Ext Cet Arc Hub Fac Machines Disabled 17 | . . . . . . 2 6 . 5 . 4 Max in Single Turn 2 | . . . . . . 1 2 . 2 . 2 Energy Cycler 2 | . . . . . . . 2 . . . . Machines Repaired . | . . . . . . . . . . . . Machines Sabotaged . | . . . . . . . . . . . . Overloaded Fab Kills . | . . . . . . . . . . . . Hacking | -11 -10 -9 -8 -7 -6 -5 -5 -5 -5 -5 -4 --------- Run | Jun Mat Mat Mat Fac Fac Fac Ext Cet Arc Hub Fac Machines Accessed 14 | . . 1 1 1 3 1 3 . . . 4 Terminals 10 | . . 1 1 1 2 1 3 . . . 1 Fabricators 1 | . . . . . . . . . . . 1 Repair Stations 3 | . . . . . 1 . . . . . 2 Recycling Units . | . . . . . . . . . . . . Scanalyzers . | . . . . . . . . . . . . Garrison Access . | . . . . . . . . . . . . Total Hacks 41 | . . 2 2 2 10 1 12 . . . 12 Successful 33 | . . 1 2 2 9 1 9 . . . 9 Failed 8 | . . 1 . . 1 . 3 . . . 3 Catastrophic . | . . . . . . . . . . . . Database Lockouts . | . . . . . . . . . . . . Manual 19 | . . 2 . 1 5 . 7 . . . 4 Terminals 30 | . . 2 2 2 8 1 12 . . . 3 Fabricators 4 | . . . . . . . . . . . 4 Repair Stations 7 | . . . . . 2 . . . . . 5 Recycling Units . | . . . . . . . . . . . . Scanalyzers . | . . . . . . . . . . . . Garrison Access . | . . . . . . . . . . . . Terminal Hacks 18 | . . 1 2 2 4 1 7 . . . 1 Robot Analysis 1 | . . . 1 . . . . . . . . Prototype ID Bank 2 | . . . 1 . . . 1 . . . . Open Door 1 | . . . . . . 1 . . . . . Level Access Points 1 | . . . . . 1 . . . . . . Branch Access Points 3 | . . 1 . 1 1 . . . . . . Alert Level 3 | . . . . 1 . . 2 . . . . Unreport Threat 5 | . . . . . . . 4 . . . 1 Locate Traps 2 | . . . . . 2 . . . . . . Fabricator Hacks 2 | . . . . . . . . . . . 2 Network Status 1 | . . . . . . . . . . . 1 Build 1 | . . . . . . . . . . . 1 Repair Station Hacks 6 | . . . . . 2 . . . . . 4 Scan Component 3 | . . . . . 1 . . . . . 2 Repair 3 | . . . . . 1 . . . . . 2 Recycling Unit Hacks . | . . . . . . . . . . . . Scanalyzer . | . . . . . . . . . . . . Garrison Access Hacks . | . . . . . . . . . . . . Unauthorized Hacks 7 | . . . . . 3 . 2 . . . 2 Terminals 6 | . . . . . 3 . 2 . . . 1 Track 2 | . . . . . 1 . 1 . . . . Assimilate 1 | . . . . . . . . . . . 1 Botnet 3 | . . . . . 2 . 1 . . . . Fabricators 1 | . . . . . . . . . . . 1 Report 1 | . . . . . . . . . . . 1 Repair Stations . | . . . . . . . . . . . . Recycling Units . | . . . . . . . . . . . . Scanalyzers . | . . . . . . . . . . . . Garrison Access . | . . . . . . . . . . . . Data Cores Recovered 4 | . . . 1 . 1 . 2 . . . . Used . | . . . . . . . . . . . . Hacking Detections 12 | . . . 1 1 3 . 3 . . . 4 Full Trace Events . | . . . . . . . . . . . . Feedback Events . | . . . . . . . . . . . . Feedback Blocked . | . . . . . . . . . . . . Robot Schematics Acquired . | . . . . . . . . . . . . Robots Built . | . . . . . . . . . . . . Authchips . | . . . . . . . . . . . . Time . | . . . . . . . . . . . . Total Robot Build Rating . | . . . . . . . . . . . . Part Schematics Acquired . | . . . . . . . . . . . . Parts Built . | . . . . . . . . . . . . Authchips . | . . . . . . . . . . . . Time 139 | . . . . . . . . . . . 139 Total Part Build Rating . | . . . . . . . . . . . . Parts Repaired 3 | . . . . . 1 . . . . . 2 Time 114 | . . . . . 16 . . . . . 98 Parts Recycled . | . . . . . . . . . . . . Recycled Matter . | . . . . . . . . . . . . Retrieved Matter . | . . . . . . . . . . . . Retrieved Components . | . . . . . . . . . . . . Parts Scanalyzed . | . . . . . . . . . . . . Part Schematics Acquired . | . . . . . . . . . . . . Parts Damaged . | . . . . . . . . . . . . Bothacking | -11 -10 -9 -8 -7 -6 -5 -5 -5 -5 -5 -4 ------------ Run | Jun Mat Mat Mat Fac Fac Fac Ext Cet Arc Hub Fac Used RIF Installer . | . . . . . . . . . . . . Robots Hacked . | . . . . . . . . . . . . Non-combat . | . . . . . . . . . . . . Combat . | . . . . . . . . . . . . Robot Hacks Applied . | . . . . . . . . . . . . Relay Couplers Released . | . . . . . . . . . . . . Fabnet Peak Effective % . | . . . . . . . . . . . . Robots Rewired 14 | . . . . . . . 14 . . . . Allies Hacked . | . . . . . . . . . . . . Hacks Repelled . | . . . . . . . . . . . . Allies | -11 -10 -9 -8 -7 -6 -5 -5 -5 -5 -5 -4 -------- Run | Jun Mat Mat Mat Fac Fac Fac Ext Cet Arc Hub Fac Total Allies 15 | . . . . . . . 14 . . . 1 Largest Group 9 | . . . . . . . 9 9 . . 1 Highest-Rated Group 222 | . . . . . . . 222 222 . . 45 Highest-Rated Ally 45 | . . . . . . . 39 31 . . 45 Total Orders . | . . . . . . . . . . . . Ally Attacks 47 | . . . . . . . 31 16 . . . Total Damage 945 | . . . . . . . 614 331 . . . Kills 5 | . . . . . . . 4 1 . . . Allies Corrupted . | . . . . . . . . . . . . Allies Melted . | . . . . . . . . . . . . Intel | -11 -10 -9 -8 -7 -6 -5 -5 -5 -5 -5 -4 ------- Run | Jun Mat Mat Mat Fac Fac Fac Ext Cet Arc Hub Fac Robot Analysis Total 1 | . . . 1 . . . . . . . . Derelict Logs Recovered . | . . . . . . . . . . . . Drone Launches . | . . . . . . . . . . . . Drone Recoveries . | . . . . . . . . . . . . Exploration | -11 -10 -9 -8 -7 -6 -5 -5 -5 -5 -5 -4 ------------- Run | Jun Mat Mat Mat Fac Fac Fac Ext Cet Arc Hub Fac Turns Passed 5929 | . 131 693 254 237 420 669 1564 238 405 73 1245 Spaces Moved 3487 | 1 99 491 162 179 311 456 933 117 169 49 520 Core 7 | . . . . . . . . . . . 7 Treads . | . . . . . . . . . . . . Legs 209 | 1 99 . . . . . . . . . 109 Wheels 3271 | . . 491 162 179 311 456 933 117 169 49 404 Hover . | . . . . . . . . . . . . Flight . | . . . . . . . . . . . . Fastest Speed 90 | 120 120 90 105 105 105 120 120 120 120 120 115 Average Speed 119 | 120 120 102 105 105 113 120 123 121 132 132 134 Slowest Speed 950 | 120 120 105 105 110 120 120 165 135 135 150 950 Overloaded Moves . | . . . . . . . . . . . . Propulsion Burnouts . | . . . . . . . . . . . . Robots Hopped . | . . . . . . . . . . . . Cave-ins Triggered 1 | . . . . . . . . . . . 1 Exploration Rate (%) 31 | 2 32 56 22 5 13 10 69 49 85 13 16 Regions Visited 11 Branch Regions 4 Pre-discovered Areas . | . . . . . . . . . . . . Known Exits Taken 6 | . . . . . 1 1 1 1 1 1 . Unknown Exits Taken 5 | 1 1 1 1 1 . . . . . . . Scrap Searched . | . . . . . . . . . . . . Spaces Dug 17 | . . . . . 4 3 3 . . . 7 Terrain Destroyed 247 | . . 8 . . 11 7 96 15 33 3 74 Melee 15 | . . . . . 4 3 2 . . . 6 Projectile 160 | . . 2 . . . 4 50 15 33 3 53 AOE 72 | . . 6 . . 7 . 44 . . . 15 Terrain Rammed . | . . . . . . . . . . . . Walls Destroyed . | . . . . . . . . . . . . Machines Disabled . | . . . . . . . . . . . . Actions | -11 -10 -9 -8 -7 -6 -5 -5 -5 -5 -5 -4 --------- Run | Jun Mat Mat Mat Fac Fac Fac Ext Cet Arc Hub Fac Total 4617 | . 113 612 217 229 361 537 1230 162 255 52 849 Wait 420 | . . 32 32 25 21 43 130 5 20 2 110 Move 3475 | . 98 490 161 178 310 455 932 116 168 48 519 Hop . | . . . . . . . . . . . . Pick Up 87 | . 8 13 5 6 4 3 10 3 8 . 27 Fast Attach 52 | . 1 4 . 1 3 3 3 3 1 . 33 Attach 50 | . . 2 2 2 2 2 3 5 3 . 29 Detach 9 | . 1 1 . . 1 2 1 1 . . 2 Swap 72 | . . 16 1 5 5 4 18 5 4 . 14 Drop 95 | . 5 20 4 10 5 6 20 3 9 . 13 Fire 280 | . . 34 12 2 4 16 57 21 42 2 90 Melee 22 | . . . . . 6 3 2 . . . 11 Ram . | . . . . . . . . . . . . Kick . | . . . . . . . . . . . . Crush . | . . . . . . . . . . . . Escape Stasis 17 | . . . . . . . 16 . . . 1 Rewire 38 | . . . . . . . 38 . . . . Trap . | . . . . . . . . . . . . Miscellaneous . | . . . . . . . . . . . . Route ------- -11/Junkyard -10/Materials (discovered 2 exits: *Mat / [*Min]) -9/Materials (discovered 3 exits: *Mat / *Min x2) -8/Materials -7/Factory (discovered 5 exits: *Fac / Sto x2 / *Low x2) -6/Factory (discovered 6 exits: *Fac x4 / Low x2) -5/Factory (discovered 2 exits: *Upp / *Ext) -5/Extension (discovered 2 exits: *Fac / *Cet) -5/Cetus -5/Archives (discovered 3 exits: *Fac / *Hub x2) -5/Hub_04(d) -4/Factory History --------- Turn | Location | Event 1 | -11/Junkyard | Discovered new exit (range 0) 1 | -11/Junkyard | Entered Materials 67 | -10/Materials | Discovered new exit (range 16) 101 | -10/Materials | Discovered new exit (range 15) 132 | -10/Materials | Entered another Materials area 132 | -9/Materials | Evolved 2 slots: Weapon x2 295 | -9/Materials | Discovered new exit (range 5) 519 | -9/Materials | Build established: Tank 577 | -9/Materials | Destroyed 7 combat bots 598 | -9/Materials | Identified exit to Mines 820 | -9/Materials | Discovered new exit (range 5) 825 | -9/Materials | Entered another Materials area 825 | -8/Materials | Evolved 2 slots: Utility x2 1070 | -8/Materials | Discovered new exit (range 8) 1079 | -8/Materials | Entered Factory 1079 | -7/Factory | Evolved 2 slots: Utility x2 1136 | -7/Factory | Discovered new exit (range 16) 1202 | -7/Factory | Build established: Hacker-Tank 1220 | -7/Factory | Discovered new exit (range 15) 1246 | -7/Factory | Identified exit to Storage 1246 | -7/Factory | Identified exit to Lower Caves 1316 | -7/Factory | Entered another Factory area 1316 | -6/Factory | Evolved 2 slots: Utility x2 1437 | -6/Factory | Identified exit to Lower Caves 1573 | -6/Factory | Repaired Imp. Light Cannon 1702 | -6/Factory | Identified exit to Factory 1736 | -6/Factory | Entered another Factory area 1736 | -5/Factory | Evolved 2 slots: Utility x2 2097 | -5/Factory | Discovered new exit (range 5) 2159 | -5/Factory | Identified exit to Upper Caves 2400 | -5/Factory | Discovered new exit (range 6) 2404 | -5/Factory | Identified exit to Extension 2405 | -5/Factory | Entered Extension 2681 | -5/Extension | Energy Cycler disabled 2681 | -5/Extension | Rescued a captive Derelict 2682 | -5/Extension | Rescued a captive Derelict 2687 | -5/Extension | Rescued a captive Derelict 2690 | -5/Extension | Rescued a captive Derelict 3328 | -5/Extension | Discovered new exit (range 10) 3330 | -5/Extension | Discovered new exit (range 6) 3512 | -5/Extension | Build established: Scavenger-Tank 3685 | -5/Extension | Extracted ID and sensor layout for unrecognized location from A7's data core 3932 | -5/Extension | Identified exit to Cetus 3969 | -5/Extension | Entered Cetus 3969 | -5/Cetus | Accompanied by 9 allies 3981 | -5/Cetus | Spotted Cetus Guard 3981 | -5/Cetus | Spotted Cetus Guard 3987 | -5/Cetus | Spotted Cetus Guard 3987 | -5/Cetus | Spotted Cetus Guard 4008 | -5/Cetus | Destroyed Cetus Guard 4011 | -5/Cetus | Allies destroyed Cetus Guard 4023 | -5/Cetus | Destroyed Cetus Guard 4027 | -5/Cetus | Destroyed Cetus Guard 4081 | -5/Cetus | Destroyed 13 combat bots 4085 | -5/Cetus | Lost 7 parts (1n3u3w) 4189 | -5/Cetus | Discovered new exit (range 16) 4206 | -5/Cetus | Identified exit to Archives 4207 | -5/Cetus | Entered Archives 4282 | -5/Archives | Lost 3 parts (2u1w) 4360 | -5/Archives | Build established: Scavenger-Skirmisher 4413 | -5/Archives | Discovered new exit (range 13) 4435 | -5/Archives | Discovered new exit (range 15) 4542 | -5/Archives | Discovered new exit (range 16) 4611 | -5/Archives | Identified exit to Hub_04(d) 4612 | -5/Archives | Entered Hub_04(d) 4622 | -5/Hub_04(d) | Discovered new exit (range 15) 4627 | -5/Hub_04(d) | Assembled infested ambush trap array 4682 | -5/Hub_04(d) | Core integrity fell below 50% 4684 | -5/Hub_04(d) | Identified exit to Factory 4685 | -5/Hub_04(d) | Entered Factory 4685 | -4/Factory | Evolved 2 slots: Utility x2 4715 | -4/Factory | Lost 4 parts (1n1u2w) 4908 | -4/Factory | Lost 5 parts (1p1n2u1w) 5008 | -4/Factory | Repaired Adv. Variable Charge Gun 5020 | -4/Factory | Garrison activated, responded to threat 5231 | -4/Factory | Repaired Adv. KE Penetrator 5416 | -4/Factory | Build established: Scavenger-Tank 5451 | -4/Factory | Crushed by falling debris 5452 | -4/Factory | System corruption reached 10% 5482 | -4/Factory | Lost 5 parts (1n3u1w) 5686 | -4/Factory | Lost 7 parts (1p6u) 5688 | -4/Factory | Destroyed 9 combat bots 5738 | -4/Factory | Core integrity fell below 50% 5787 | -4/Factory | System corruption reached 30% 5822 | -4/Factory | Core integrity fell below 20% 5869 | -4/Factory | Lost 20 parts (2p4n4u10w) 5928 | -4/Factory | Cargo convoy interrupted 5930 | -4/Factory | Self-destructed Last Messages --------------- 05917_ P-70 Sage destroyed. 05917_ Slug penetrates K-01 Serf. 05917_ Switching to secondary target: P-70 Sage. 05917_ Slug penetrates P-70 Sage. 05917_ Slug penetrates Wall. 05920_ Recoil Nullifier destroyed. 05920_ Slug penetrates P-70 Sage. 05920_ Slug penetrates Wall. 05927_ C-30 ARC bursts open, deploying its payload. 05927_ P-70 Sage unfolds itself. 05927_ X-72 Disruptor unfolds itself. 05927_ P-70 Sage unfolds itself. 05927_ P-70 Sage resets P-70 Sage, system corruption cleaned. 05928_ ALERT: Cargo convoy interrupted, initiating access lockdown. 05928_ C-30 ARC bursts open, deploying its payload. 05928_ X-72 Disruptor unfolds itself. 05928_ X-82 Rainmaker unfolds itself. 05928_ P-70 Sage unfolds itself. 05928_ I-47 Archangel unfolds itself. 05929_ P-70 Sage resets K-01 Serf, system corruption cleaned. Map ----- +----------------------------------------------------+ | ?????????# # "" "G???????????????????????? | | ?????##??# # """ "????????????????????????? | | ?????# ??# #? """ = ???????????????????????? | | ?????# ??#######? """ ??????????????????????????? | | ???### ??????????? ???????????????????????????? | | #### # ####??????? ??????????????????????????? | | ### ""#"#???????? ??????????????????????????? | | "#???????? ??????????????????????????? | | = "##???????? ??????????????????????????? | | %! " #?????? ? ?????????????????????????? | | #"######""??##??????????????????????????? | | # ??????????????????????????????? | | # ???????????????????????????????? | | # ????????????????????????????????? | | ! #% ???? ????????????????????????????? | | #! """ ??" ""???????????????????????????? | | ! [ =# """ ?"" "????????????????????????????? | | # """ ?"" ?????????????????????????????? | | #???? ??????????????????????????????? | | #######+########;#####???????????????????????????? | | % #################+#?????????? | | ! = % t w ?????????? | | | !! == % % ????????? | | ! =! x w % ????????? | | * ppip k ????????? | | =!! =hi!p| @ % ????????? | | *[ Ai %pxx%######### T#######??????????? | | #######/###### =!% #?????????##????????????????? | | # % #*%= |% #???????????????????????????? | | # = # * % ?????????????????????????? | | # = # =% ????????????????????????? | | # # ??????????????????????? | | # # ????????????????????? | | # # ??????????????????? | | # # ?????????????????? | | # # ??????????????????? | | / # ######+#####??????????????????? | | # # #?????????????????????????????? | | # + ??????????????????????????????? | | # ####+#??????????????????????????????? | | ##############???????????????????????????????????? | | ?????????????????????????????????????????????????? | | ?????????????????????????????????????????????????? | | ?????????????????????????????????????????????????? | | ?????????????????????????????????????????????????? | | ?????????????????????????????????????????????????? | | ?????????????????????????????????????????????????? | | ?????????????????????????????????????????????????? | | ?????????????????????????????????????????????????? | | ?????????????????????????????????????????????????? | +----------------------------------------------------+ Best States ------------- Heat Dissipation 81 Energy Generation 25 Energy Capacity 350 Matter Stores 300 Matter Capacity 300 Sight Range 22 Robot Scan Range 15 Terrain Scan Density 10 Armor Coverage 600 Resistance: TH 25 Power Shielding 90 Utility Shielding 66 Phase Shifting 10 Evasion (%) 55 Targeting Accuracy 6 Recoil Reduction 18 Offensive Hacking 56 Defensive Hacking 12 Item Schematics ----------------- None Robot Schematics ------------------ None Fabricated ------------ Nothing Alien Tech Used ----------------- None Achievements -------------- None Challenges ------------ None Game ------ Seed MediumCentriumBarrier Manual? 0 Play Time 00:59:43 Cumulative 214.7 hours Start 2024.02.24 @ 17:17:32 End 2024.02.24 @ 22:26:19 Sessions 3 Manual Loads 0 Difficulty Rogue Special Mode None Game No. 126 Rogue 126 Adventurer 0 Explorer 0 Win Type - Total 2 Types 2/0/0/0/0/0/0/0/0 Lore% 50 Gallery% 70 Achievement% 56 Wizard Run 0 Options --------- ASCII 0 Keyboard 1 Movement Numpad Keybinds 0 Fullscreen 1 Font 24/Smallcaps Map View 76x50 Tactical HUD 1 Map Filters NONE Filters NONE Steam 1 RUN: 48d1ebfd-19c2-4f10-9453-ee5cebc731fb